bitfinex/quotes_BTCUSD_20220111
["timestamp","ask_amount","ask_price","bid_price","bid_amount"]
[1641924767516,1.540341,42500.0,42499.0,0.00015]
[1641924767718,1.551341,42500.0,42499.0,0.00015]
[1641924767917,1.55101874,42500.0,42499.0,0.00015]
[1641924768319,2.14041874,42500.0,42499.0,0.00015]
[1641924769122,2.12941874,42500.0,42499.0,0.00015]
[1641924769319,2.12941874,42500.0,42497.0,0.00084649]
[1641924769320,1.577653,42499.0,42497.0,0.00084649]
[1641924769523,1.80912926,42498.0,42497.0,6.49e-06]
[1641924769721,1.80912926,42498.0,42485.0,0.00015]
[1641924769722,2.45738126,42498.0,42485.0,0.00015]
[1641924769921,0.5894,42495.0,42479.0,0.0003]
[1641924770165,1.27639121,42494.0,42479.0,0.0003]
[1641924770365,0.42915669,42483.0,42479.0,0.0003]
[1641924770566,0.45101826,42482.0,42479.0,0.0003]
[1641924770966,0.45101826,42482.0,42475.0,0.0003]
[1641924771465,0.45101826,42482.0,42476.0,0.058857]
[1641924771668,0.26721057,42481.0,42476.0,0.058857]
[1641924771866,0.26721057,42481.0,42477.0,0.0003]
[1641924772467,0.058862,42480.0,42477.0,0.0003]
[1641924772667,0.55,42480.0,42475.0,0.0963]
[1641924772868,0.55,42480.0,42475.0,0.0453]
[1641924773566,0.55,42480.0,42474.0,0.10594714]
[1641924773812,0.555,42480.0,42475.0,0.05]
[1641924774012,0.555,42480.0,42475.0,0.05084671]
[1641924774216,0.555,42480.0,42476.0,0.058858]
[1641924774613,0.555,42480.0,42476.0,0.10594367]
[1641924774815,0.555,42480.0,42475.0,0.05084671]
[1641924774816,0.377733,42479.0,42475.0,0.05084671]
[1641924775015,0.27075517,42478.0,42472.0,0.15628778]
[1641924775217,0.27075517,42478.0,42476.0,0.00084671]
[1641924775415,0.058865,42479.0,42476.0,0.00084671]
[1641924775616,0.27665981,42478.0,42476.0,0.00084671]
[1641924775817,0.007,42478.0,42476.0,0.00084671]
[1641924776218,0.007,42478.0,42474.0,0.04708779]
[1641924776519,0.007,42478.0,42475.0,0.00084672]
[1641924776916,0.55,42480.0,42475.0,0.00084672]
[1641924777316,0.55,42480.0,42474.0,0.10594779]
[1641924777567,0.55,42480.0,42475.0,0.00084671]
[1641924777761,0.557,42480.0,42475.0,0.00084671]
[1641924778365,0.5922402,42480.0,42475.0,0.00084671]
[1641924778562,0.5922402,42480.0,42473.0,0.009418]
[1641924778765,0.5922402,42480.0,42475.0,0.00084671]
[1641924778964,0.5852402,42480.0,42475.0,0.00084671]
[1641924779166,0.436604,42479.0,42475.0,0.00084671]
[1641924779368,0.41431111,42478.0,42475.0,0.00084671]
[1641924779565,0.242726,42477.0,42475.0,0.00084671]
[1641924779864,0.242726,42477.0,42474.0,0.00084672]
[1641924779865,1.58212769,42476.0,42474.0,0.00084672]
[1641924780065,2.16729646,42475.0,42474.0,0.00084672]
[1641924780465,1.16729646,42475.0,42474.0,0.00084672]
[1641924780665,0.30768172,42475.0,42474.0,0.00084672]
[1641924780866,0.30768172,42475.0,42473.0,0.009418]
[1641924781066,0.05429261,42476.0,42473.0,0.009418]
[1641924781713,0.06329261,42476.0,42473.0,0.009418]
[1641924782114,0.01609261,42476.0,42473.0,0.009418]
[1641924782615,0.009,42476.0,42474.0,0.058857]
[1641924782814,0.009,42476.0,42475.0,0.72157274]
[1641924783015,1.5038,42485.0,42475.0,0.427733]
[1641924783217,1.5038,42485.0,42475.0,0.05]
[1641924783415,0.9167,42485.0,42478.0,0.0941573]
[1641924783614,0.9167,42485.0,42478.0,0.00084669]
[1641924783816,0.9497,42485.0,42478.0,0.00084669]
[1641924784017,0.46692188,42484.0,42478.0,0.00084669]
[1641924784219,0.46692188,42484.0,42478.0,0.04792985]
[1641924784418,0.46692188,42484.0,42479.0,0.05]
[1641924784616,0.3619706,42480.0,42478.0,0.04708316]
[1641924784816,0.3619706,42480.0,42479.0,0.00084668]
[1641924785263,0.7397036,42480.0,42479.0,0.00084668]
[1641924785662,0.7397036,42480.0,42474.0,0.04708674]
[1641924785663,0.3799706,42480.0,42474.0,0.04708674]
[1641924785862,0.3799706,42480.0,42477.0,0.00084669]
[1641924786263,0.4388296,42480.0,42477.0,0.00084669]
[1641924786864,0.076859,42480.0,42474.0,0.04708689]
[1641924787067,0.076859,42480.0,42476.0,0.0008467]
[1641924787265,0.018,42480.0,42476.0,0.0008467]
[1641924787465,0.03343396,42483.0,42476.0,0.0008467]
[1641924787665,0.01,42480.0,42476.0,0.0008467]
[1641924788066,0.01,42480.0,42479.0,0.04707984]
[1641924788912,0.03343396,42483.0,42479.0,0.04707984]
[1641924789513,0.03343396,42483.0,42479.0,0.04792652]
[1641924789716,0.06743396,42483.0,42479.0,0.05092652]
[1641924790315,0.06743396,42483.0,42479.0,0.10977652]
[1641924790518,0.06743396,42483.0,42479.0,0.10892984]
[1641924790717,0.06743396,42483.0,42479.0,0.10977652]
[1641924790918,0.03343396,42483.0,42479.0,0.10677652]
[1641924791319,0.03343396,42483.0,42479.0,0.04792652]
[1641924791719,0.05643396,42483.0,42479.0,0.005]
[1641924791917,0.05643396,42483.0,42479.0,0.00584668]
[1641924792964,0.03343396,42483.0,42479.0,0.04708155]
[1641924793164,0.03343396,42483.0,42479.0,0.04792823]
[1641924793663,0.04443396,42483.0,42479.0,0.05392823]
[1641924793865,0.04443396,42483.0,42479.0,0.00684668]
[1641924794064,0.44367632,42482.0,42479.0,0.006]
[1641924794263,0.44367632,42482.0,42479.0,0.00684668]
[1641924794464,0.06594332,42482.0,42479.0,0.00684668]
[1641924795065,0.06594332,42482.0,42479.0,0.00084668]
[1641924795264,0.06594332,42482.0,42474.0,0.04708725]
[1641924795465,0.058858,42479.0,42478.0,0.00084668]
[1641924795865,0.49052401,42479.0,42478.0,0.00084668]
[1641924796514,0.79052401,42479.0,42476.0,0.04708543]
[1641924796714,0.058858,42479.0,42476.0,0.04793213]
[1641924796914,0.00709132,42482.0,42476.0,0.04793213]
[1641924797115,0.058855,42481.0,42476.0,0.04793213]
[1641924797315,0.05824082,42481.0,42476.0,0.04793213]
[1641924797718,0.05824082,42481.0,42476.0,0.09008543]
[1641924797719,0.06124082,42481.0,42476.0,0.09008543]
[1641924797915,0.06124082,42481.0,42476.0,0.0438467]
[1641924799016,0.06124082,42481.0,42474.0,0.15302215]
[1641924799017,0.05824082,42481.0,42474.0,0.15302215]
[1641924799218,0.05824082,42481.0,42477.0,0.04708413]
[1641924799818,0.06424082,42481.0,42477.0,0.05208413]
[1641924800077,0.006,42481.0,42478.0,0.09415854]
[1641924800269,0.006,42481.0,42479.0,0.04707679]
[1641924800470,0.006,42481.0,42480.0,1.05830719]
[1641924800671,0.006,42481.0,42480.0,1.43731299]
[1641924800672,0.0001,42481.0,42480.0,1.43731299]
[1641924800870,0.0001,42481.0,42480.0,1.58731299]
[1641924801372,0.00015,42490.0,42484.0,0.117665]
[1641924801571,0.00015,42490.0,42487.0,0.058832]
[1641924801769,0.00015,42490.0,42488.0,0.377733]
[1641924801969,0.00015,42490.0,42487.0,0.058832]
[1641924802574,0.00015,42490.0,42487.0,0.16472952]
[1641924802772,0.00015,42490.0,42488.0,0.377733]
[1641924803475,0.00015,42490.0,42489.0,0.00123617]
[1641924803675,0.04015,42490.0,42489.0,1.42896917]
[1641924803913,0.02273705,42490.0,42489.0,1.47896917]
[1641924804114,0.02273705,42490.0,42489.0,1.67896917]
[1641924804317,1.13599772,42505.0,42490.0,0.75]
[1641924804616,1.13599772,42505.0,42495.0,0.06006997]
[1641924804818,1.13599772,42505.0,42496.0,0.058818]
[1641924805118,1.13599796,42505.0,42496.0,0.058818]
[1641924805314,0.00079796,42505.0,42496.0,0.058818]
[1641924805719,0.00079796,42505.0,42496.0,0.073818]
[1641924806215,0.33721427,42506.0,42496.0,0.073818]
[1641924806417,0.00079797,42505.0,42497.0,0.10587234]
[1641924806715,0.00079797,42505.0,42497.0,0.15587234]
[1641924807316,0.33721427,42506.0,42497.0,0.15587234]
[1641924807568,0.00079799,42505.0,42497.0,0.15587234]
[1641924807768,0.00079799,42505.0,42497.0,0.17087234]
[1641924807967,0.00079799,42505.0,42499.0,1.57896325]
[1641924808166,0.00079799,42505.0,42499.0,1.67616325]
[1641924808566,0.00015,42510.0,42500.0,0.6]
[1641924808767,0.00079802,42505.0,42504.0,0.926411]
[1641924808968,0.00079802,42505.0,42504.0,0.976411]
[1641924809168,0.00079802,42505.0,42504.0,1.35536897]
[1641924809368,0.00079802,42505.0,42504.0,1.40256897]
[1641924809769,0.00015,42510.0,42506.0,0.058801]
[1641924809969,0.00079812,42507.0,42506.0,0.1058417]
[1641924810169,0.00079812,42507.0,42506.0,0.058801]
[1641924810971,0.00015,42510.0,42506.0,0.058801]
[1641924811169,0.00079814,42509.0,42507.0,0.04704333]
[1641924811817,0.00079814,42509.0,42507.0,0.05704333]
[1641924812215,0.00015,42510.0,42508.0,0.14110834]
[1641924812415,0.00094816,42510.0,42509.0,0.05]
[1641924813416,0.00015,42510.0,42509.0,0.508797]
[1641924813817,0.00015,42510.0,42509.0,0.135797]
[1641924815668,0.00015,42510.0,42509.0,0.108797]
[1641924815867,0.00015,42510.0,42509.0,0.136797]
[1641924816267,0.00015,42510.0,42509.0,0.386797]
[1641924816466,0.00015,42510.0,42509.0,0.136797]
[1641924817068,0.00015,42510.0,42509.0,0.108797]
[1641924817767,0.00015,42510.0,42509.0,0.136797]
[1641924818567,0.00015,42510.0,42509.0,0.61315824]
[1641924819016,0.00079817,42512.0,42509.0,0.61315824]
[1641924819017,0.00079817,42512.0,42511.0,0.10412293]
[1641924819216,0.00079817,42512.0,42511.0,1.38296829]
[1641924819417,0.00215,42520.0,42511.0,0.47602218]
[1641924819618,0.00534228,42520.0,42515.0,0.058793]
[1641924819818,0.00534228,42520.0,42518.0,0.00129921]
[1641924820617,0.00215,42520.0,42518.0,0.00129921]
[1641924820824,0.00015,42520.0,42519.0,0.09357363]
[1641924821020,0.00015,42520.0,42519.0,1.47897164]
[1641924821218,0.00015,42520.0,42519.0,1.52897164]
[1641924821425,0.00015,42520.0,42519.0,0.47617164]
[1641924821619,0.00015,42520.0,42519.0,0.47948827]
[1641924821818,0.00015,42520.0,42519.0,0.51448827]
[1641924822319,1.20015,42520.0,42517.0,0.09405793]
[1641924822575,0.377619,42519.0,42514.0,0.0999]
[1641924822771,0.36528084,42518.0,42506.0,0.09409339]
[1641924822969,0.377619,42517.0,42506.0,0.09409339]
[1641924823171,0.0472,42516.0,42506.0,0.09409339]
[1641924823373,0.43613713,42514.0,42507.0,0.058809]
[1641924823571,0.0472,42513.0,42507.0,0.058809]
[1641924823870,0.48344564,42509.0,42508.0,0.04704778]
[1641924824673,0.48344564,42509.0,42506.0,0.044]
[1641924824877,0.11842017,42512.0,42507.0,0.00127629]
[1641924824878,0.05960417,42512.0,42507.0,0.00127629]
[1641924825275,0.058806,42512.0,42507.0,0.00127629]
[1641924825475,0.05960417,42512.0,42507.0,0.00127629]
[1641924825878,0.06160417,42512.0,42507.0,0.04027629]
[1641924826075,0.93819729,42511.0,42509.0,0.10584973]
[1641924826320,0.99700829,42511.0,42507.0,0.089]
[1641924826522,0.31903118,42510.0,42507.0,0.039]
[1641924826722,0.424819,42509.0,42507.0,0.039]
[1641924826922,1.51903118,42508.0,42507.0,0.039]
[1641924827120,1.51903118,42508.0,42500.0,0.00015]
[1641924827121,1.93399077,42508.0,42497.0,0.00015]
[1641924827324,0.058824,42504.0,42497.0,0.00015]
[1641924827623,0.058824,42504.0,42495.0,0.00084664]
[1641924827624,0.71638075,42503.0,42496.0,0.00015]
[1641924827821,0.71638075,42503.0,42497.0,0.047]
[1641924827822,0.71834757,42503.0,42497.0,0.047]
[1641924828022,0.71834757,42503.0,42498.0,0.436441]
[1641924828222,0.71834757,42503.0,42498.0,0.436591]
[1641924828424,0.71834757,42503.0,42499.0,0.00015]
[1641924828622,1.13263764,42503.0,42499.0,0.00015]
[1641924828822,0.86502891,42503.0,42499.0,0.00015]
[1641924829122,0.058823,42502.0,42499.0,0.00015]
[1641924829722,0.058823,42502.0,42500.0,0.377619]
[1641924829922,0.066823,42502.0,42500.0,0.377619]
[1641924830173,0.066823,42502.0,42500.0,0.377769]
[1641924830975,0.008,42502.0,42500.0,0.377769]
[1641924831172,0.3849266,42505.0,42500.0,0.377769]
[1641924831374,0.38412854,42505.0,42500.0,0.377769]
[1641924831673,0.3849266,42505.0,42500.0,0.377769]
[1641924831873,0.3737181,42504.0,42500.0,0.422769]
[1641924832073,0.32273421,42502.0,42500.0,0.422769]
[1641924832273,0.32273421,42502.0,42500.0,0.04515]
[1641924832675,1.427619,42501.0,42500.0,0.04515]
[1641924833074,1.427619,42501.0,42500.0,0.00015]
[1641924833477,1.427619,42501.0,42496.0,0.00015]
[1641924833675,0.058828,42499.0,42496.0,0.00015]
[1641924835917,0.065828,42499.0,42496.0,0.01115]
[1641924836318,0.065828,42499.0,42497.0,0.00015]
[1641924836521,0.113028,42499.0,42497.0,0.00015]
[1641924836920,0.163028,42499.0,42497.0,0.00015]
[1641924837119,0.156028,42499.0,42497.0,0.00015]
[1641924837577,0.156028,42499.0,42496.0,0.00015]
[1641924837769,0.169028,42499.0,42497.0,0.006]
[1641924838070,0.169028,42499.0,42497.0,0.05305704]
[1641924838071,0.0602,42499.0,42497.0,0.05305704]
[1641924838270,0.0602,42499.0,42498.0,0.40015]
[1641924838473,0.0602,42499.0,42498.0,0.377769]
[1641924838870,0.013,42499.0,42498.0,0.377769]
[1641924839072,0.058818,42502.0,42498.0,0.377769]
[1641924839272,0.058818,42502.0,42499.0,0.058817]
[1641924839472,0.058818,42502.0,42499.0,0.058967]
[1641924839673,0.058818,42502.0,42500.0,0.00015]
[1641924839872,0.092818,42502.0,42500.0,0.00015]
[1641924840675,0.08246635,42502.0,42500.0,0.00015]
[1641924840878,0.034,42502.0,42500.0,0.09358]
[1641924841075,0.00079806,42505.0,42502.0,0.65]
[1641924841321,0.00079806,42505.0,42504.0,1.227619]
[1641924841517,0.00079806,42505.0,42504.0,1.37889315]
[1641924841717,0.00079806,42505.0,42504.0,0.42889315]
[1641924841918,0.058808,42509.0,42505.0,0.5]
[1641924842120,0.36836595,42513.0,42505.0,0.5]
[1641924842319,0.36836595,42513.0,42510.0,0.04704423]
[1641924842523,0.36836595,42513.0,42511.0,0.05]
[1641924843421,0.058804,42512.0,42508.0,0.04704776]
[1641924843624,0.058804,42512.0,42505.0,0.09409161]
[1641924844023,0.058804,42512.0,42504.0,0.117611]
[1641924844223,0.058804,42512.0,42505.0,0.058811]
[1641924844824,0.058804,42512.0,42506.0,0.058811]
[1641924845069,0.45964006,42509.0,42506.0,0.058811]
[1641924845267,0.51845406,42509.0,42503.0,0.058813]
[1641924845668,0.058814,42509.0,42503.0,0.058813]
[1641924845868,0.3764,42523.0,42503.0,0.058813]
[1641924845869,0.00079041,42508.0,42505.0,0.21169914]
[1641924846068,0.00079041,42508.0,42506.0,0.377619]
[1641924846267,0.00079041,42508.0,42507.0,0.827619]
[1641924846473,0.00079041,42508.0,42507.0,0.936422]
[1641924846972,0.39206984,42517.0,42507.0,0.995227]
[1641924847169,0.39206984,42517.0,42511.0,0.0940717]
[1641924847370,0.39206984,42517.0,42511.0,0.1440717]
[1641924847769,0.39206984,42517.0,42511.0,0.1540717]
[1641924847970,0.058799,42515.0,42514.0,0.058797]
[1641924848173,0.058799,42515.0,42513.0,0.058797]
[1641924848371,0.35026204,42514.0,42513.0,0.058797]
[1641924849218,0.00079048,42516.0,42514.0,0.04703721]
[1641924849418,0.39206984,42517.0,42514.0,0.04703721]
[1641924849618,0.00079048,42516.0,42514.0,0.10583421]
[1641924849819,0.00079048,42516.0,42514.0,0.16283421]
[1641924850519,0.40135822,42516.0,42514.0,0.16283421]
[1641924850720,0.40135822,42516.0,42514.0,0.22163221]
[1641924851923,0.00079049,42517.0,42514.0,0.22863221]
[1641924852125,0.00015,42520.0,42516.0,0.00120541]
[1641924852323,0.42,42523.0,42520.0,0.55]
[1641924852581,0.42,42523.0,42521.0,0.00121424]
[1641924852780,0.00416149,42524.0,42521.0,0.00121424]
[1641924852976,0.001,42524.0,42521.0,0.00121424]
[1641924853277,0.001,42524.0,42523.0,0.377619]
[1641924853476,0.001,42524.0,42523.0,0.427619]
[1641924853876,0.001,42524.0,42523.0,0.443619]
[1641924854878,0.001,42524.0,42523.0,0.016]
[1641924855078,0.001,42524.0,42522.0,0.04701895]
[1641924855479,0.35626539,42524.0,42522.0,0.04701895]
[1641924855878,0.35626539,42524.0,42522.0,0.06601895]
[1641924857118,0.35626539,42524.0,42522.0,0.04701895]
[1641924857919,0.35626539,42524.0,42522.0,0.06801895]
[1641924859225,0.001,42524.0,42522.0,0.04701895]
[1641924859824,0.001,42524.0,42522.0,0.09701895]
[1641924861075,0.001,42524.0,42522.0,0.04701895]
[1641924861879,0.001,42524.0,42522.0,0.08501895]
[1641924863278,0.001,42524.0,42522.0,0.04701895]
[1641924863921,0.001,42524.0,42522.0,0.10901895]
[1641924865124,0.001,42524.0,42522.0,0.04701895]
[1641924865826,0.001,42524.0,42522.0,0.10701895]
[1641924867328,0.000394,42523.0,42522.0,0.10701895]
[1641924867582,0.000394,42523.0,42522.0,0.06]
[1641924867774,1.247594,42523.0,42514.0,0.1771913]
[1641924867972,1.247594,42523.0,42522.0,0.034]
[1641924868174,0.047594,42523.0,42522.0,0.034]
[1641924868374,0.000394,42523.0,42522.0,0.034]
[1641924869175,0.000394,42523.0,42521.0,0.10582204]
[1641924869875,0.000394,42523.0,42521.0,0.18182204]
[1641924870076,0.001,42526.0,42524.0,0.55636819]
[1641924870278,0.001,42526.0,42525.0,0.377619]
[1641924870476,0.001,42526.0,42525.0,0.797619]
[1641924870675,0.001,42526.0,42525.0,0.897619]
[1641924871319,0.00115,42530.0,42529.0,0.00123863]
[1641924871520,0.01005351,42537.0,42532.0,0.376092]
[1641924871521,5e-05,42533.0,42532.0,0.376092]
[1641924871918,5e-05,42533.0,42532.0,0.426092]
[1641924873221,0.01005351,42537.0,42532.0,0.756092]
[1641924873421,0.01005351,42537.0,42536.0,0.97881158]
[1641924873621,0.01005351,42537.0,42536.0,0.42881158]
[1641924874023,0.01005351,42537.0,42536.0,0.44981158]
[1641924875076,0.01005351,42537.0,42536.0,0.42881158]
[1641924875868,0.01005351,42537.0,42536.0,0.47081158]
[1641924876070,0.01005351,42537.0,42536.0,0.469559]
[1641924876970,0.01005351,42537.0,42536.0,0.419559]
[1641924876971,0.66157218,42537.0,42536.0,0.419559]
[1641924877171,0.66157218,42537.0,42533.0,0.0999]
[1641924877172,0.97884219,42537.0,42533.0,0.0999]
[1641924877468,0.97884219,42537.0,42526.0,0.058782]
[1641924877469,0.43464115,42536.0,42526.0,0.058782]
[1641924877675,0.05708215,42536.0,42526.0,0.058782]
[1641924877870,0.15708215,42536.0,42533.0,0.028]
[1641924878070,0.377559,42535.0,42533.0,0.028]
[1641924878270,0.00708215,42536.0,42533.0,0.028]
[1641924879323,0.00708215,42536.0,42533.0,0.086774]
[1641924879523,0.00208215,42536.0,42533.0,0.086774]
[1641924879725,0.00208215,42536.0,42533.0,0.058774]
[1641924879923,0.01208215,42536.0,42533.0,0.065774]
[1641924880426,0.01208215,42536.0,42533.0,0.007]
[1641924881025,0.07086115,42536.0,42533.0,0.007]
[1641924881223,0.06086115,42536.0,42533.0,0.058774]
[1641924881423,0.00208215,42536.0,42534.0,0.0470184]
[1641924881625,0.00208215,42536.0,42532.0,0.05]
[1641924882024,0.02508215,42536.0,42534.0,0.005]
[1641924882669,0.02508215,42536.0,42534.0,0.0520191]
[1641924883270,0.00208215,42536.0,42534.0,0.0470191]
[1641924884371,0.00208215,42536.0,42528.0,0.21159108]
[1641924884372,0.377559,42535.0,42528.0,0.21159108]
[1641924884574,0.88086935,42534.0,42525.0,0.478784]
[1641924884770,0.88086935,42534.0,42525.0,0.42]
[1641924884968,0.42885321,42531.0,42525.0,0.42]
[1641924885169,0.39245679,42526.0,42525.0,0.42]
[1641924885571,1.98647095,42526.0,42525.0,0.42]
[1641924885771,1.59901416,42526.0,42525.0,0.42]
[1641924885971,0.007,42526.0,42525.0,0.431]
[1641924886170,0.007,42526.0,42525.0,0.808559]
[1641924887120,0.05956346,42528.0,42525.0,0.42]
[1641924887323,0.04797546,42528.0,42525.0,0.42]
[1641924887721,0.0472,42528.0,42525.0,0.42]
[1641924887923,0.0502,42528.0,42525.0,0.433]
[1641924889124,0.0472,42528.0,42525.0,0.42]
[1641924889424,0.4565184,42527.0,42525.0,0.42]
[1641924889624,0.5065184,42527.0,42525.0,0.42]
[1641924890074,0.5095184,42527.0,42525.0,0.448]
[1641924891269,0.5537184,42527.0,42525.0,0.42]
[1641924891970,0.5567184,42527.0,42525.0,0.446]
[1641924892171,0.1002,42527.0,42525.0,0.446]
[1641924892371,0.0502,42527.0,42525.0,0.446]
[1641924892570,0.1002,42527.0,42525.0,0.446]
[1641924893172,0.37153315,42526.0,42525.0,0.42]
[1641924894422,1.87804239,42526.0,42525.0,0.42]
[1641924894626,2.02524239,42526.0,42525.0,0.42]
[1641924894924,1.2,42523.0,42511.0,0.00126788]
[1641924895126,1.2,42523.0,42510.0,0.00015]
[1641924895127,0.058809,42517.0,42510.0,0.00015]
[1641924895324,0.058809,42517.0,42506.0,0.00015]
[1641924895325,0.00128906,42515.0,42506.0,0.00015]
[1641924895523,0.424759,42514.0,42506.0,0.00015]
[1641924895727,0.33891591,42508.0,42503.0,0.00015]
[1641924895924,0.78087366,42508.0,42506.0,0.008]
[1641924896123,0.78087366,42508.0,42507.0,0.0999]
[1641924896325,1.20843266,42508.0,42507.0,0.10005]
[1641924897326,1.53269358,42508.0,42507.0,0.10005]
[1641924897968,1.54369358,42508.0,42507.0,0.10705]
[1641924898372,0.82721867,42508.0,42507.0,0.10705]
[1641924898571,0.38526092,42508.0,42507.0,0.10705]
[1641924899270,0.37426092,42508.0,42507.0,0.10005]
[1641924899872,0.32426092,42508.0,42507.0,0.15005]
[1641924900072,0.34226092,42508.0,42507.0,0.15705]
[1641924900274,0.018,42508.0,42507.0,0.15705]
[1641924900876,0.018,42508.0,42507.0,0.10705]
[1641924901321,0.058819,42509.0,42507.0,0.10005]
[1641924901521,1.4141889,42508.0,42507.0,0.10005]
[1641924901721,2.19315918,42508.0,42507.0,0.0999]
[1641924901923,1.50045063,42508.0,42507.0,0.10005]
[1641924902137,1.55965063,42508.0,42507.0,0.10705]
[1641924902922,1.65965063,42508.0,42507.0,0.10705]
[1641924903125,1.65965063,42508.0,42500.0,0.00015]
[1641924903126,1.2,42507.0,42500.0,0.00015]
[1641924903327,1.2,42501.0,42496.0,0.42]
[1641924903527,0.00123345,42497.0,42496.0,0.42]
[1641924903724,1.62599245,42497.0,42496.0,0.42]
[1641924903924,2.83071572,42497.0,42496.0,0.42]
[1641924904223,1.79771572,42497.0,42496.0,0.421]
[1641924904626,0.49299245,42497.0,42496.0,0.421]
[1641924904828,0.1142,42497.0,42496.0,0.421]
[1641924905469,0.31948811,42505.0,42497.0,1.2]
[1641924905470,0.00129009,42505.0,42497.0,1.2]
[1641924905676,0.00015,42510.0,42497.0,1.2]
[1641924905677,0.0472,42504.0,42498.0,0.377559]
[1641924905872,0.00015,42510.0,42502.0,0.00121027]
[1641924905873,0.31819802,42505.0,42502.0,0.00121027]
[1641924906075,0.00015,42510.0,42503.0,0.377559]
[1641924906270,0.00015,42510.0,42502.0,0.16882427]
[1641924906471,0.00015,42510.0,42506.0,0.055188]
[1641924906670,0.00015,42510.0,42508.0,0.0012633]
[1641924906873,0.00015,42510.0,42509.0,0.0472]
[1641924907872,0.00015,42510.0,42509.0,0.424759]
[1641924908172,0.00015,42510.0,42509.0,0.456759]
[1641924909220,0.00015,42510.0,42509.0,0.956759]
[1641924909420,0.00015,42510.0,42509.0,0.93377049]
[1641924909621,0.00015,42510.0,42509.0,0.44278198]
[1641924910021,0.00015,42510.0,42509.0,0.47478198]
[1641924911723,0.00015,42510.0,42509.0,0.46978198]
[1641924912024,0.00015,42510.0,42509.0,0.50078198]
[1641924912678,0.00015,42520.0,42513.0,0.377559]
[1641924912876,0.00015,42520.0,42519.0,0.0012741]
[1641924913077,0.00015,42520.0,42519.0,0.0484741]
[1641924913274,0.00015,42520.0,42519.0,0.0984741]
[1641924914075,0.00015,42520.0,42519.0,0.2382541]
[1641924914276,0.00015,42520.0,42519.0,0.8382541]
[1641924914475,0.00015,42520.0,42519.0,0.6158131]
[1641924914679,0.00015,42520.0,42519.0,0.62482459]
[1641924914877,0.00015,42520.0,42519.0,0.63383608]
[1641924915277,0.00015,42520.0,42519.0,0.65283608]
[1641924915679,0.00015,42520.0,42519.0,0.55283608]
[1641924916079,0.00015,42520.0,42519.0,0.58983608]
[1641924917423,0.00015,42520.0,42519.0,0.55283608]
[1641924917621,0.00015,42520.0,42519.0,0.50283608]
[1641924917822,0.00015,42520.0,42519.0,0.06649708]
[1641924918022,0.00015,42520.0,42519.0,0.09802298]
[1641924918224,1.577709,42520.0,42519.0,0.09802298]
[1641924918622,1.73479408,42520.0,42519.0,0.09802298]
[1641924919324,1.73479408,42520.0,42519.0,0.01802298]
[1641924919325,1.63479408,42520.0,42519.0,0.01802298]
[1641924919624,0.05723508,42520.0,42519.0,0.01802298]
[1641924919824,0.32273831,42520.0,42519.0,0.01802298]
[1641924920079,0.00723508,42520.0,42519.0,0.04302298]
[1641924920470,0.00723508,42520.0,42519.0,0.10181198]
[1641924921270,0.00723508,42520.0,42519.0,0.07681198]
[1641924922069,0.00723508,42520.0,42519.0,0.08481198]
[1641924922871,0.00723508,42520.0,42519.0,0.13481198]
[1641924923272,0.00723508,42520.0,42519.0,0.12681198]
[1641924924129,0.00723508,42520.0,42519.0,0.13481198]
[1641924925929,0.00723508,42520.0,42519.0,0.12681198]
[1641924926128,0.00723508,42520.0,42519.0,0.13481198]
[1641924926631,0.39075157,42520.0,42519.0,0.07602298]
[1641924927028,0.74075157,42520.0,42519.0,0.02602298]
[1641924927229,0.79075157,42520.0,42519.0,0.02602298]
[1641924927431,1.16960143,42520.0,42519.0,0.01802298]
[1641924927677,1.63782646,42520.0,42519.0,0.01802298]
[1641924928272,1.68502646,42520.0,42519.0,0.01802298]
[1641924928673,1.68502646,42520.0,42503.0,0.3099]
[1641924928674,0.058811,42515.0,42514.0,0.00084635]
[1641924928874,1.577559,42515.0,42514.0,0.00084635]
[1641924929074,2.49008556,42515.0,42514.0,0.00084635]
[1641924929278,2.53728556,42515.0,42514.0,0.00084635]
[1641924929678,2.53728556,42515.0,42503.0,0.09409717]
[1641924929877,0.45930626,42506.0,42503.0,0.09409717]
[1641924930076,0.50930626,42506.0,42503.0,0.09409717]
[1641924930274,0.05,42506.0,42503.0,0.09409717]
[1641924930475,0.05,42509.0,42504.0,0.42460691]
[1641924930675,0.05,42509.0,42506.0,0.058811]
[1641924930875,0.0472,42510.0,42506.0,0.058811]
[1641924932124,0.058811,42509.0,42506.0,0.067811]
[1641924932324,0.058811,42509.0,42506.0,0.0686574]
[1641924932522,0.058811,42509.0,42507.0,0.04704848]
[1641924932922,0.108811,42509.0,42507.0,0.04704848]
[1641924933524,0.05,42509.0,42507.0,0.04704848]
[1641924933723,0.117612,42517.0,42507.0,0.04704848]
[1641924933924,0.117612,42517.0,42511.0,0.04704257]
[1641924934125,0.377559,42514.0,42507.0,0.01]
[1641924934430,0.43017151,42508.0,42507.0,0.01]
[1641924934622,0.90773051,42508.0,42507.0,0.01]
[1641924934824,0.95773051,42508.0,42507.0,0.01]
[1641924935078,1.38021908,42508.0,42507.0,0.01]
[1641924935270,1.38021908,42508.0,42503.0,0.09409571]
[1641924935468,1.00266008,42508.0,42502.0,0.11762]
[1641924935669,1.00266008,42508.0,42502.0,0.04705398]
[1641924935869,1.00266008,42508.0,42503.0,0.00084643]
[1641924936070,0.058816,42506.0,42503.0,0.00084643]
[1641924936669,0.108816,42506.0,42503.0,0.00084643]
[1641924936870,0.108816,42506.0,42502.0,0.05905398]
[1641924937073,0.108816,42506.0,42502.0,0.05990042]
[1641924937271,0.108816,42506.0,42502.0,0.04790042]
[1641924937672,1.31638083,42503.0,42502.0,0.00084644]
[1641924937872,1.69393983,42503.0,42502.0,0.00084644]
[1641924938072,1.8451561,42503.0,42502.0,0.017]
[1641924938271,1.8923561,42503.0,42502.0,0.017]
[1641924939525,0.93305048,42502.0,42500.0,0.00084646]
[1641924939728,0.73518947,42501.0,42500.0,0.00084646]
[1641924939925,0.73518947,42501.0,42500.0,0.00099646]
[1641924940324,0.35763047,42501.0,42500.0,0.00099646]